bitfinex/quotes_SOLUSD_20251001
["timestamp","ask_amount","ask_price","bid_price","bid_amount"]
[1759312979876,0.69,217.63,217.58,20.8]
[1759312980092,0.69,217.62,217.59,33.02]
[1759312980704,0.2,217.64,217.6,33.02]
[1759312980891,0.69,217.63,217.6,33.02]
[1759312981100,0.69,217.63,217.6,37.61558173]
[1759312982893,0.69,217.63,217.6,33.02]
[1759312983314,0.2,217.64,217.6,37.61552532]
[1759312983499,0.89,217.64,217.6,37.61552532]
[1759312983699,0.2,217.64,217.6,37.61552532]
[1759312984015,0.89,217.64,217.6,37.61552532]
[1759312984315,0.69,217.63,217.6,33.02]
[1759312984515,1.04807094,217.61,217.55,35.88]
[1759312984704,1.73807094,217.6,217.56,32.98]
[1759312984912,0.69,217.59,217.56,32.98]
[1759312985216,0.69,217.58,217.56,32.98]
[1759312985514,0.69,217.61,217.56,32.98]
[1759312985712,0.69,217.6,217.56,32.98]
[1759312986100,0.69,217.62,217.56,32.98]
[1759312986301,0.89,217.64,217.56,33.38]
[1759312986504,0.89,217.64,217.57,16.08677666]
[1759312986805,0.2,217.64,217.57,4.9962219]
[1759312986991,0.2,217.64,217.49,112.69559401]
[1759312986992,1.04807094,217.58,217.47,0.4]
[1759312987194,1.04807094,217.58,217.42,23.73314461]
[1759312987195,0.69,217.57,217.48,33.38]
[1759312987395,0.69,217.57,217.49,9.06]
[1759312988323,4.59579943,217.59,217.51,4.59748977]
[1759312988525,0.69,217.58,217.51,4.59748977]
[1759312989515,5.28616975,217.58,217.51,4.59748977]
[1759312991407,0.69,217.57,217.5,4.59770114]
[1759312991722,0.69,217.56,217.51,33.06]
[1759312991942,0.69,217.55,217.51,33.06]
[1759312992124,0.69,217.54,217.52,33.04]
[1759312992315,0.69,217.53,217.52,33.04]
[1759312993003,3.3429295,217.53,217.43,11.89755568]
[1759312993324,5.2873464,217.52,217.44,37.63896983]
[1759312993527,0.69,217.51,217.44,37.63896983]
[1759312995512,0.69,217.51,217.44,38.03896983]
[1759312995724,4.5974985,217.51,217.42,4.99925517]
[1759312995902,0.69,217.5,217.43,33.02]
[1759312996297,7.250428,217.51,217.42,4.59925517]
[1759312996524,0.69,217.49,217.43,33.04]
[1759312996738,2.6529295,217.5,217.43,33.04]
[1759312996739,0.69,217.5,217.43,33.04]
[1759312996902,20.8,217.53,217.44,0.4]
[1759312997639,0.69,217.54,217.45,4.59875833]
[1759312997934,0.69,217.54,217.46,0.4]
[1759312998348,21.49,217.56,217.46,0.4]
[1759312998870,26.0865094,217.56,217.46,0.4]
[1759312999177,5.2865094,217.56,217.46,0.4]
[1759312999366,26.0865094,217.56,217.46,0.4]
[1759312999674,0.69,217.56,217.47,16.0941739]
[1759312999850,0.69,217.55,217.48,33.1]
[1759313001053,0.69,217.55,217.49,4.59791254]
[1759313001577,5.28664854,217.55,217.49,4.59791254]
[1759313001791,5.28664854,217.55,217.5,33.08]
[1759313002088,0.69,217.54,217.51,33.08]
[1759313002778,0.69,217.56,217.51,33.08]
[1759313002977,0.69,217.56,217.52,4.59727841]
[1759313003180,21.49,217.59,217.52,4.59727841]
[1759313003394,0.66,217.58,217.52,4.59727841]
[1759313003565,20.8,217.59,217.52,4.59727841]
[1759313003888,0.66,217.57,217.52,4.59727841]
[1759313004090,20.8,217.59,217.52,4.59727841]
[1759313004299,0.66,217.56,217.52,4.59727841]
[1759313004609,0.66,217.56,217.51,33.08]
[1759313005675,0.66,217.56,217.47,11.49581964]
[1759313005676,3.3129295,217.55,217.47,20.8]
[1759313005871,3.3129295,217.54,217.48,33.04]
[1759313006080,2.6529295,217.54,217.48,33.04]
[1759313006278,4.59645316,217.56,217.42,0.4]
[1759313006279,2.6529295,217.51,217.42,0.4]
[1759313006484,2.6529295,217.49,217.42,4.59939288]
[1759313006684,0.66,217.48,217.43,33.04]
[1759313006891,2.6529295,217.49,217.43,33.04]
[1759313007094,0.66,217.48,217.43,33.04]
[1759313007286,0.66,217.47,217.43,33.04]
[1759313007904,0.66,217.47,217.43,37.6391302]
[1759313008223,0.66,217.46,217.43,33.04]
[1759313008505,0.66,217.49,217.43,33.04]
[1759313008711,0.66,217.49,217.43,37.63911881]
[1759313008907,5.25801075,217.49,217.43,37.63911881]
[1759313009096,0.66,217.48,217.43,33.04]
[1759313009403,0.66,217.47,217.43,33.04]
[1759313009902,7.91094025,217.49,217.43,37.63905537]
[1759313010092,5.25801075,217.49,217.43,37.63905537]
[1759313010284,11.49330913,217.52,217.43,37.63905537]
[1759313010285,0.66,217.52,217.43,38.03905537]
[1759313011100,20.8,217.53,217.44,0.4]
[1759313011675,25.39712617,217.53,217.45,16.09565416]
[1759313011883,25.39712617,217.53,217.46,0.4]
[1759313012088,5.25686206,217.54,217.47,33.0]
[1759313013710,4.59686206,217.54,217.47,37.9982264]
[1759313014509,4.59686206,217.54,217.47,33.4]
[1759313014689,0.66,217.55,217.47,33.4]
[1759313014889,5.25657202,217.56,217.48,0.4]
[1759313015592,16.74765493,217.56,217.47,33.0]
[1759313015913,0.66,217.55,217.47,33.0]
[1759313016105,0.66,217.54,217.47,33.0]
[1759313016307,1.04906551,217.52,217.44,20.8]
[1759313016513,1.04906551,217.5,217.45,33.02]
[1759313016698,13.59559401,217.54,217.41,35.84]
[1759313016699,1.04906551,217.48,217.41,35.84]
[1759313016887,0.66,217.47,217.42,33.02]
[1759313017214,0.66,217.46,217.42,33.02]
[1759313017402,4.59875833,217.45,217.42,33.02]
[1759313017707,5.25875833,217.45,217.42,33.02]
[1759313018609,5.25875833,217.45,217.41,35.84]
[1759313018610,0.66,217.44,217.41,35.84]
[1759313018801,0.66,217.43,217.42,33.0]
[1759313019388,5.25918134,217.43,217.42,33.0]
[1759313020706,4.59918134,217.43,217.42,33.0]
[1759313021213,5.25918134,217.43,217.42,33.0]
[1759313022197,0.66,217.46,217.42,33.0]
[1759313022402,16.09373897,217.48,217.42,33.0]
[1759313022617,0.66,217.45,217.42,33.0]
[1759313022814,0.66,217.45,217.43,33.0]
[1759313022815,0.66,217.44,217.43,33.0]
[1759313022994,0.66,217.44,217.41,35.84]
[1759313022995,3.31584649,217.44,217.41,35.84]
[1759313023192,2.65584649,217.42,217.41,35.84]
[1759313023501,3.31584649,217.42,217.41,68.84]
[1759313023702,7.91523937,217.42,217.41,35.84]
[1759313024101,21.51083338,217.42,217.41,35.84]
[1759313024417,21.51083338,217.42,217.32,35.86]
[1759313024418,33.00931558,217.42,217.32,35.86]
[1759313024618,2.65584649,217.38,217.32,35.86]
[1759313024925,0.66,217.37,217.32,35.86]
[1759313025289,0.66,217.36,217.32,35.86]
[1759313025639,4.60108585,217.34,217.33,33.0]
[1759313027697,16.10247594,217.36,217.33,33.0]
[1759313028605,16.76247594,217.36,217.33,33.0]
[1759313029207,18.75832243,217.36,217.33,33.0]
[1759313029428,0.66,217.35,217.33,33.0]
[1759313029629,4.60108585,217.34,217.33,33.0]
[1759313030412,4.60108585,217.34,217.32,35.86]
[1759313030631,4.60108585,217.34,217.33,32.94]
[1759313031717,4.60087416,217.35,217.33,32.94]
[1759313031916,5.26087416,217.35,217.33,32.94]
[1759313032102,0.66,217.34,217.33,32.94]
[1759313032704,4.60087416,217.35,217.33,32.94]
[1759313032927,4.60087416,217.35,217.32,35.86]
[1759313032928,0.66,217.34,217.32,35.86]
[1759313033234,0.66,217.33,217.32,35.86]
[1759313033419,0.66,217.33,217.32,68.8]
[1759313033816,5.26129756,217.33,217.32,35.86]
[1759313034434,5.26129756,217.33,217.32,68.8]
[1759313036118,5.26129756,217.33,217.32,35.86]
[1759313036320,5.26129756,217.33,217.32,68.8]
[1759313036321,9.25673312,217.33,217.32,68.8]
[1759313037204,9.25673312,217.33,217.24,0.4]
[1759313037205,13.59559401,217.32,217.24,0.4]
[1759313037407,3.99543556,217.3,217.23,35.88]
[1759313037726,16.10824741,217.28,217.23,35.88]
[1759313038038,0.7,217.27,217.23,35.88]
[1759313038434,4.6023564,217.28,217.24,33.34]
[1759313038617,4.6023564,217.28,217.25,0.4]
[1759313038931,4.6023564,217.28,217.26,32.94]
[1759313039333,14.29559401,217.38,217.27,0.4]
[1759313039535,14.29559401,217.38,217.28,32.94]
[1759313039536,20.8,217.35,217.28,32.94]
[1759313039719,0.7,217.37,217.29,0.4]
[1759313039913,4.69543556,217.37,217.3,32.94]
[1759313040106,0.7,217.37,217.31,32.94]
[1759313040335,1.64201927,217.35,217.28,0.4]
[1759313040639,2.34201927,217.35,217.29,32.94]
[1759313040817,2.34201927,217.35,217.3,32.94]
[1759313041023,2.34201927,217.35,217.31,32.94]
[1759313041024,0.7,217.35,217.31,32.94]
[1759313041222,0.7,217.34,217.32,32.94]
[1759313041536,2.34201927,217.33,217.23,35.88]
[1759313041714,16.10750608,217.29,217.24,32.94]
[1759313041916,0.7,217.28,217.24,32.94]
[1759313042641,16.10750608,217.29,217.24,33.34]
[1759313042938,16.80750608,217.29,217.24,32.94]
[1759313043135,16.10750608,217.29,217.24,32.94]
[1759313043323,16.80750608,217.29,217.24,33.34]
[1759313043728,16.80750608,217.29,217.24,32.94]
[1759313043923,4.60191887,217.31,217.25,0.4]
[1759313044442,16.10622147,217.31,217.25,0.4]
[1759313044612,16.10622147,217.31,217.24,33.34]
[1759313044613,16.80622147,217.31,217.24,33.34]
[1759313044949,16.10622147,217.31,217.25,0.4]
[1759313045819,4.60191887,217.31,217.25,0.4]
[1759313046217,16.80622147,217.31,217.23,35.88]
[1759313046537,18.44824074,217.31,217.24,32.94]
[1759313046736,18.44824074,217.31,217.23,36.28]
[1759313046924,18.44824074,217.31,217.25,32.94]
[1759313047118,4.60129756,217.33,217.26,0.4]
[1759313047920,11.50324391,217.33,217.26,0.4]
[1759313048115,11.50324391,217.33,217.27,32.94]
[1759313048529,11.50324391,217.33,217.26,0.4]
[1759313048739,11.50324391,217.33,217.26,35.9]
[1759313049921,16.10454147,217.33,217.27,32.94]
[1759313052348,4.60129756,217.33,217.27,32.94]
[1759313052523,0.7,217.38,217.27,32.94]
[1759313052718,2.34201927,217.38,217.26,35.9]
[1759313052921,1.64201927,217.37,217.26,35.9]
[1759313053140,17.74359722,217.37,217.27,32.94]
[1759313053342,17.74359722,217.37,217.26,40.50276918]
[1759313053540,1.64201927,217.36,217.26,35.9]
[1759313053744,1.64201927,217.32,217.26,35.9]
[1759313053930,1.64201927,217.32,217.27,32.94]
[1759313054330,0.7,217.35,217.27,32.94]
[1759313054543,1.64201927,217.32,217.27,32.94]
[1759313054839,0.7,217.31,217.28,32.94]
[1759313055231,4.60193281,217.3,217.26,35.9]
[1759313055433,4.60193281,217.3,217.29,32.94]
[1759313056252,0.7,217.35,217.29,32.94]
[1759313056544,1.64201927,217.33,217.3,32.94]
[1759313056718,2.34201927,217.33,217.31,32.94]
[1759313057360,0.7,217.33,217.31,32.94]
[1759313057574,4.60130159,217.33,217.31,32.94]
[1759313057727,0.7,217.32,217.26,35.9]
[1759313058074,0.7,217.32,217.27,32.94]
[1759313058418,0.7,217.31,217.27,32.94]
[1759313058821,0.7,217.31,217.28,32.94]
[1759313059331,2.34201927,217.31,217.28,32.94]
[1759313059647,4.60193281,217.3,217.28,32.94]
[1759313059945,4.60193281,217.3,217.29,32.94]
[1759313060126,6.94395208,217.3,217.29,32.94]
[1759313060327,18.4487841,217.3,217.29,32.94]
[1759313061631,16.80676483,217.3,217.29,32.94]
[1759313062443,4.60193281,217.3,217.29,32.94]
[1759313062841,4.60150929,217.32,217.29,32.94]
[1759313064348,4.60087416,217.35,217.29,32.94]
[1759313064557,4.59896983,217.44,217.29,37.54212487]
[1759313064853,13.59559401,217.42,217.29,49.04748636]
[1759313065031,15.23761328,217.42,217.29,49.04748636]
[1759313065350,2.29201927,217.41,217.29,49.04748636]
[1759313066065,16.74935601,217.4,217.29,49.04748636]
[1759313067230,18.39137528,217.4,217.29,37.54212487]
[1759313067640,16.74935601,217.4,217.29,37.54212487]
[1759313068150,16.74935601,217.4,217.29,49.04748636]
[1759313068557,5.249816,217.4,217.29,49.04748636]
[1759313068752,4.599816,217.4,217.29,49.04748636]
[1759313069154,16.09874153,217.41,217.3,32.94]
[1759313069849,0.65,217.4,217.27,4.60256823]
[1759313070040,17.7407608,217.41,217.28,32.94]
[1759313070041,2.29201927,217.39,217.28,32.94]
[1759313070956,16.10083724,217.38,217.29,4.60214459]
[1759313072451,4.60066249,217.36,217.29,4.60214459]
[1759313074185,4.60066249,217.36,217.28,37.54232351]
[1759313074377,0.65,217.35,217.28,32.94]
[1759313074675,13.59559401,217.3,217.29,32.94]
[1759313074839,13.59559401,217.32,217.29,32.94]
[1759313075148,20.8,217.33,217.29,32.94]
[1759313075470,4.60172104,217.31,217.29,32.94]
[1759313075669,4.60172104,217.31,217.24,4.60319847]
[1759313075670,4.60172104,217.31,217.3,33.0]
[1759313076144,0.65,217.32,217.3,33.0]
[1759313076350,23.09201927,217.35,217.3,33.0]
[1759313076551,0.65,217.34,217.3,33.0]
[1759313076743,4.60127238,217.34,217.3,33.0]
[1759313076948,11.50137436,217.37,217.3,33.0]
[1759313077242,12.15137436,217.37,217.3,33.0]
[1759313077439,4.60066249,217.36,217.3,33.0]
[1759313077663,20.8,217.39,217.3,37.6018476]
[1759313077875,4.6000276,217.39,217.3,37.6018476]
[1759313078045,5.24981953,217.4,217.3,49.10667962]
[1759313078239,5.24981953,217.4,217.3,37.6018476]
[1759313078444,5.24981953,217.4,217.3,49.10667962]
[1759313079773,5.24981953,217.4,217.3,37.6018476]
[1759313080345,4.59945555,217.42,217.3,49.10667962]
[1759313080650,4.59945555,217.42,217.33,20.8]
[1759313081449,0.65,217.43,217.34,4.60108585]
[1759313081653,0.65,217.43,217.35,32.98]
[1759313082258,0.65,217.47,217.35,68.86]
[1759313082557,12.14499399,217.49,217.35,68.86]
[1759313082752,32.94499399,217.49,217.35,68.86]
[1759313083154,0.65,217.48,217.35,68.86]
[1759313083355,4.5983354,217.47,217.36,16.10231872]
[1759313085274,5.2483354,217.47,217.36,16.10231872]
[1759313085650,4.59812672,217.48,217.36,16.10231872]
[1759313087069,5.24812672,217.48,217.36,16.10231872]
[1759313087570,4.59812672,217.48,217.36,16.10231872]
[1759313087775,4.59854685,217.46,217.36,16.10231872]
[1759313088575,0.65,217.47,217.36,16.10231872]
[1759313088975,5.24834602,217.47,217.36,19.75398706]
[1759313089167,21.45,217.49,217.36,19.75398706]
[1759313089778,0.65,217.49,217.39,20.8]
[1759313090074,0.65,217.48,217.4,32.92]
[1759313090259,0.65,217.5,217.4,32.92]
[1759313090455,29.68606844,217.52,217.4,32.92]
[1759313090682,0.65,217.51,217.4,32.92]
[1759313091758,5.24755596,217.51,217.41,16.09861551]
[1759313092587,32.00993569,217.53,217.41,16.09861551]
[1759313092796,0.65,217.52,217.41,16.09861551]
[1759313093602,6.61265821,217.53,217.41,16.09861551]
[1759313093787,11.20974681,217.53,217.45,4.59875833]
[1759313094102,11.20974681,217.53,217.46,32.92]
[1759313094895,11.20974681,217.53,217.47,4.5983354]
[1759313095998,6.61265821,217.53,217.47,4.5983354]
[1759313096494,6.61265821,217.53,217.46,32.92]
[1759313096699,0.65,217.52,217.46,32.92]
[1759313096868,0.65,217.52,217.47,32.92]
[1759313097068,0.65,217.52,217.48,32.92]
[1759313097303,11.20983637,217.53,217.42,20.8]
[1759313097304,0.65,217.51,217.49,32.92]
[1759313100005,0.65,217.5,217.49,32.92]
[1759313100203,5.24770114,217.5,217.49,32.92]
[1759313100988,5.24770114,217.5,217.39,11.49965897]
[1759313101178,0.65,217.49,217.39,11.49965897]
[1759313101378,0.65,217.48,217.4,32.92]
[1759313102206,5.24831937,217.48,217.4,37.519816]
[1759313102807,0.65,217.48,217.4,49.01935601]
[1759313103097,0.65,217.52,217.4,49.01935601]
[1759313103391,0.65,217.51,217.4,49.01935601]
[1759313104695,20.8,217.54,217.43,20.8]
[1759313104991,0.65,217.54,217.44,32.92]
[1759313106205,5.24695442,217.54,217.44,32.92]
[1759313106505,5.24695442,217.54,217.45,4.59875833]
[1759313106911,5.24695442,217.54,217.45,16.09565416]
[1759313107289,0.65,217.54,217.45,16.09565416]
[1759313107709,0.65,217.53,217.45,4.59875833]
[1759313108012,0.65,217.52,217.46,32.92]
[1759313108519,5.24685755,217.54,217.46,32.92]
[1759313110222,5.24685755,217.54,217.47,4.5983354]
[1759313110397,0.65,217.53,217.46,32.92]
[1759313110590,0.65,217.53,217.45,20.8]
[1759313110794,0.65,217.52,217.46,32.9]
[1759313112027,13.59559401,217.53,217.46,32.9]
[1759313112240,5.24763547,217.51,217.46,32.9]
[1759313112423,0.65,217.51,217.46,37.49853522]
[1759313112596,4.59715756,217.53,217.46,37.49853522]
[1759313114028,5.24689555,217.54,217.46,48.99490236]
[1759313114596,5.24690874,217.54,217.46,48.99490236]
[1759313115695,5.24690874,217.54,217.47,35.86]
[1759313115918,5.24690874,217.54,217.48,4.59812396]
[1759313117993,25.39654015,217.56,217.48,4.59812396]
[1759313118296,26.04654015,217.56,217.48,4.59812396]
[1759313118534,0.65,217.55,217.48,4.59812396]
[1759313118692,0.65,217.54,217.48,4.59812396]
[1759313118897,0.65,217.53,217.48,4.59812396]
[1759313119119,0.65,217.52,217.48,4.59812396]
[1759313119331,0.69,217.51,217.48,4.59812396]
[1759313119526,0.69,217.53,217.48,4.59812396]
[1759313120222,0.69,217.52,217.48,4.59812396]
[1759313120411,0.69,217.54,217.48,4.59812396]
[1759313121106,5.28693761,217.54,217.48,4.59812396]
[1759313121304,14.01077636,217.59,217.48,4.59812396]
[1759313121512,0.69,217.54,217.48,4.59812396]
[1759313121701,0.69,217.53,217.48,4.59812396]
[1759313121893,0.69,217.52,217.48,4.59812396]
[1759313123333,0.69,217.52,217.47,35.86]
[1759313123334,0.69,217.51,217.47,40.4583156]
[1759313124129,4.59708981,217.53,217.47,40.4583156]
[1759313124338,0.69,217.5,217.47,35.86]
[1759313124506,0.69,217.52,217.47,35.86]
[1759313124703,0.69,217.51,217.47,35.86]
[1759313124931,0.69,217.5,217.48,32.9]
[1759313125126,0.69,217.49,217.48,32.9]
[1759313126831,5.28791254,217.49,217.48,32.9]
[1759313127628,5.28791254,217.49,217.47,35.86]
[1759313127829,4.59791254,217.49,217.48,32.9]
[1759313128425,5.28791254,217.49,217.48,32.9]
[1759313129647,0.69,217.49,217.48,32.9]
[1759313129954,5.28727841,217.52,217.48,32.9]
[1759313130414,0.69,217.51,217.48,32.9]
[1759313130620,4.59727841,217.52,217.48,32.9]
[1759313130926,0.69,217.52,217.48,32.9]
[1759313131138,4.59710863,217.53,217.48,32.9]
[1759313131447,5.28737609,217.52,217.48,32.9]
[1759313131751,0.69,217.51,217.48,37.49808219]
[1759313132128,4.59728652,217.52,217.48,32.9]
[1759313132345,0.69,217.51,217.48,32.9]
[1759313132546,4.59708558,217.53,217.48,32.9]
[1759313132763,0.69,217.52,217.48,32.9]
[1759313133154,4.59708558,217.53,217.48,32.9]
[1759313133317,0.69,217.51,217.48,32.9]
[1759313133519,5.28770114,217.5,217.49,32.9]
[1759313137326,5.28770114,217.5,217.43,35.86]
[1759313137529,0.69,217.49,217.44,32.9]
[1759313139021,5.28809283,217.49,217.44,32.9]
[1759313139943,0.69,217.48,217.44,32.9]
[1759313140542,0.69,217.47,217.44,32.9]
[1759313140750,5.28809283,217.49,217.44,32.9]
[1759313141050,5.28819257,217.48,217.44,32.9]
[1759313142435,4.59819257,217.48,217.44,32.9]
[1759313142745,4.59819257,217.48,217.43,35.86]
[1759313142746,0.69,217.47,217.43,35.86]
[1759313142957,13.59559401,217.45,217.43,35.86]
[1759313143169,18.19435234,217.45,217.44,32.88]
[1759313143664,18.88435234,217.45,217.44,32.88]
[1759313144459,21.49,217.48,217.44,32.88]
[1759313144781,0.69,217.47,217.44,32.88]
[1759313144988,0.69,217.46,217.44,32.88]
[1759313145171,0.69,217.45,217.44,32.88]
[1759313145966,36.89346874,217.48,217.44,32.88]
[1759313146169,0.69,217.47,217.44,32.88]
[1759313146483,0.69,217.46,217.44,32.88]
[1759313147067,0.69,217.45,217.44,32.88]
[1759313147382,36.89346874,217.48,217.44,32.88]
[1759313147554,0.69,217.47,217.44,32.88]
[1759313147885,0.69,217.46,217.44,32.88]
[1759313148385,0.69,217.47,217.44,32.88]
[1759313148552,25.39815883,217.48,217.44,32.88]
[1759313148760,0.69,217.47,217.44,32.88]
[1759313149378,0.69,217.46,217.44,32.88]
[1759313149688,4.59875833,217.45,217.44,32.88]
[1759313150780,5.28875833,217.45,217.44,32.88]
[1759313150974,4.59875833,217.45,217.44,32.88]
[1759313151379,4.59858542,217.46,217.44,32.88]
[1759313151578,5.28858542,217.46,217.44,32.88]
[1759313153771,12.15530991,217.48,217.44,32.88]
[1759313153971,0.66,217.47,217.44,32.88]
[1759313154180,4.59791254,217.49,217.44,32.88]
[1759313154395,4.59772728,217.5,217.44,37.47896816]
[1759313154584,5.25772728,217.5,217.44,37.47896816]
[1759313155058,5.25772728,217.5,217.44,32.88]
[1759313155262,5.25772088,217.5,217.44,32.88]
[1759313155497,0.66,217.49,217.44,32.88]
[1759313155690,4.5983354,217.47,217.44,32.88]
[1759313155867,5.2583354,217.47,217.44,32.88]
[1759313156161,0.66,217.46,217.44,32.88]
[1759313156591,0.66,217.46,217.45,32.88]
[1759313156890,4.5983354,217.47,217.45,32.88]
[1759313157468,0.66,217.46,217.45,32.88]
[1759313157670,5.25854685,217.46,217.45,32.88]
[1759313158071,4.59854685,217.46,217.45,32.88]
[1759313158479,5.25854685,217.46,217.45,32.88]
[1759313159689,13.59559401,217.47,217.45,32.88]
[1759313159880,14.25559401,217.47,217.45,32.88]
[1759313160187,0.66,217.46,217.45,32.88]
[1759313161874,13.59559401,217.45,217.37,35.86]
[1759313162174,15.78255442,217.43,217.38,32.88]
[1759313162401,0.66,217.42,217.38,32.88]
[1759313162605,21.46,217.45,217.38,32.88]
[1759313163506,0.66,217.44,217.38,32.88]
[1759313163704,0.66,217.43,217.38,32.88]
[1759313163880,0.66,217.42,217.38,32.88]
[1759313164193,0.66,217.41,217.38,32.88]
[1759313164500,13.59559401,217.42,217.38,32.88]
[1759313164799,0.66,217.41,217.38,32.88]
[1759313165676,4.59981478,217.41,217.38,32.88]
[1759313166278,5.25981478,217.41,217.38,32.88]
[1759313167106,4.59981478,217.41,217.38,32.88]
[1759313167685,5.25981478,217.41,217.38,32.88]
[1759313168699,4.59981478,217.41,217.38,32.88]
[1759313168894,5.25981478,217.41,217.38,32.88]
[1759313169089,0.66,217.4,217.38,32.88]
[1759313169297,0.66,217.39,217.37,35.86]
[1759313169488,16.75882586,217.41,217.39,32.86]
[1759313169695,0.66,217.4,217.39,32.86]
[1759313170284,4.59964264,217.41,217.39,32.86]
[1759313170501,25.39964264,217.41,217.39,32.86]
[1759313170732,20.8,217.41,217.39,32.86]
[1759313170908,4.59959648,217.42,217.39,32.86]
[1759313171281,5.25959648,217.42,217.39,32.86]
[1759313172291,0.66,217.41,217.39,32.86]
[1759313173183,0.66,217.4,217.37,35.86]
[1759313173387,0.66,217.39,217.38,32.86]
[1759313174612,5.2600276,217.39,217.38,32.86]
[1759313176111,5.2600276,217.39,217.32,4.60147014]
[1759313176314,5.2600276,217.39,217.2,25.12730321]
[1759313176315,5.2600276,217.39,217.15,5.38966555]
[1759313176316,20.0,217.26,217.15,5.38966555]
[1759313176518,13.59559401,217.15,217.07,35.88]
[1759313176820,20.0,217.18,217.08,33.14]
[1759313176993,13.59559401,217.21,217.08,33.14]
[1759313177201,13.59559401,217.21,217.09,21.14677594]
[1759313177386,13.59559401,217.21,217.1,33.16]
[1759313177590,13.59559401,217.21,217.11,21.14677594]
[1759313178612,13.59559401,217.18,217.1,33.16]
[1759313179222,20.0,217.22,217.1,33.16]
[1759313179511,20.0,217.22,217.11,2.94148493]
[1759313179512,13.59559401,217.21,217.11,2.94148493]
[1759313179720,20.0,217.25,217.14,20.8]
[1759313179922,13.59559401,217.25,217.15,56.88128849]
[1759313180097,13.59559401,217.25,217.16,36.10128849]
[1759313180295,16.22792922,217.26,217.17,19.7505541]
[1759313180522,2.404,217.26,217.18,33.16]
[1759313181700,2.404,217.26,217.19,2.93602968]
[1759313181909,2.404,217.26,217.18,33.16]
[1759313182214,13.59559401,217.27,217.19,2.93658157]
[1759313182409,20.0,217.29,217.18,33.16]
[1759313182614,13.59559401,217.28,217.19,7.54036747]
[1759313182788,13.59559401,217.28,217.19,4.60426354]
[1759313185897,13.59559401,217.28,217.2,33.12]
[1759313186419,13.59559401,217.28,217.19,4.60426354]
[1759313186420,20.0,217.27,217.19,4.60426354]
[1759313186713,20.0,217.27,217.2,33.12]
[1759313187119,13.59559401,217.28,217.2,33.12]
[1759313187299,20.0,217.27,217.21,4.6038396]
[1759313187820,13.59559401,217.28,217.21,4.6038396]
[1759313188322,20.0,217.27,217.22,33.12]
[1759313188728,20.68,217.27,217.23,33.1]
[1759313188944,20.0,217.27,217.21,4.6038396]
[1759313189216,20.0,217.25,217.22,69.0]
[1759313189422,0.68,217.24,217.23,33.1]
[1759313189797,0.68,217.24,217.2,4.6038932]
[1759313190294,0.68,217.24,217.21,69.0]
[1759313191218,0.68,217.24,217.2,4.6038932]
[1759313191428,0.68,217.24,217.18,4.60447555]
[1759313191917,20.0,217.25,217.18,4.60447555]
[1759313192092,20.0,217.25,217.19,68.98]
[1759313192292,20.0,217.25,217.2,68.98]
[1759313192527,20.68,217.25,217.21,73.5838396]
[1759313193272,20.68,217.25,217.21,4.6038396]
[1759313193413,20.68,217.25,217.22,68.96]